fUSD/lending_fUSD_20240609
["ID","MTS","AMOUNT","RATE_DAILY","PERIOD"]
[328897060,1717968648975,-500.0,0.00029041,4]
[328897061,1717968648986,-505.61065715,0.00029041,4]
[328897062,1717968648997,-500.0,0.00029041,4]
[328897063,1717968649007,-514.32594668,0.00029041,4]
[328897064,1717968649018,-500.0,0.00029041,4]
[328897065,1717968649029,-500.0,0.00029041,4]
[328897066,1717968649039,-503.83387238,0.00029041,4]
[328897067,1717968649050,-500.0,0.00029041,4]
[328897068,1717968649060,-500.0,0.00029041,4]
[328897069,1717968649070,-500.0,0.00029041,4]
[328897070,1717968649081,-500.0,0.00029041,4]
[328897071,1717968649091,-500.0,0.00029041,4]
[328897072,1717968649101,-500.0,0.00029041,4]
[328897073,1717968649112,-500.0,0.00029041,4]
[328897074,1717968649122,-500.0,0.00029041,4]
[328897075,1717968649133,-263.20181691,0.00029041,4]
[328897076,1717968649143,-500.0,0.00029041,4]
[328897077,1717968649154,-257.33797913,0.00029041,4]
[328897078,1717968649164,-500.0,0.00029041,4]
[328897079,1717968649175,-590.55328482,0.00029041,4]
[328897080,1717968649185,-503.38068842,0.00029041,4]
[328897081,1717968649195,-500.0,0.00029041,4]
[328897082,1717968649209,-649.44,0.00029041,4]
[328897083,1717968649219,-508.74009365,0.00029041,4]
[328897084,1717968649229,-155.97966155,0.00029041,4]
[328897085,1717968649239,-500.0,0.00029041,4]
[328897086,1717968649249,-500.0,0.00029041,4]
[328897087,1717968649259,-500.0,0.00029041,4]
[328897088,1717968649269,-500.0,0.00029041,4]
[328897089,1717968649279,-500.0,0.00029041,4]
[328897090,1717968649289,-510.92862899,0.00029041,4]
[328897091,1717968649300,-500.0,0.00029041,4]
[328897092,1717968649310,-506.23287293,0.00029041,4]
[328897093,1717968649320,-500.0,0.00029041,4]
[328897094,1717968649330,-500.0,0.00029041,4]
[328897095,1717968649341,-500.0,0.00029041,4]
[328897096,1717968649351,-500.0,0.00029041,4]
[328897097,1717968649361,-250.98,0.00029041,4]
[328897098,1717968649372,-635.62964893,0.00029041,4]
[328897099,1717968649384,-500.0,0.00029041,4]
[328897100,1717968649394,-500.0,0.00029041,4]
[328897101,1717968649404,-502.56918681,0.00029041,4]
[328897102,1717968649415,-500.0,0.00029041,4]
[328897103,1717968649426,-500.0,0.00029041,4]
[328897104,1717968649437,-500.0,0.00029041,4]
[328897105,1717968649449,-500.0,0.00029041,4]
[328897106,1717968649460,-500.0,0.00029041,4]
[328897107,1717968649470,-500.0,0.00029041,4]
[328897108,1717968649481,-341.21438108,0.00029041,4]
[328897109,1717968649491,-255.2617774,0.00029041,4]
[328897110,1717968649503,-617.47398838,0.00029041,4]
[328897111,1717968649513,-508.02085342,0.00029041,4]
[328897112,1717968649523,-500.0,0.00029041,4]
[328897113,1717968649533,-513.01458963,0.00029041,4]
[328897114,1717968649544,-500.0,0.00029041,4]
[328897115,1717968649554,-537.92681631,0.00029041,4]
[328897116,1717968649565,-500.0,0.00029041,4]
[328897117,1717968649575,-500.0,0.00029041,4]
[328897118,1717968649586,-500.0,0.00029041,4]
[328897119,1717968649596,-500.0,0.00029041,4]
[328897120,1717968649607,-501.95011011,0.00029041,4]
[328897121,1717968649617,-160.58162363,0.00029041,4]
[328897122,1717968649627,-500.0,0.00029041,4]
[328897123,1717968649638,-487.33525707,0.00029041,4]
[328897124,1717968649648,-500.0,0.00029041,4]
[328897125,1717968649658,-500.0,0.00029041,4]
[328897126,1717968649669,-500.0,0.00029041,4]
[328897127,1717968649679,-500.0,0.00029041,4]
[328897128,1717968649690,-500.0,0.00029041,4]
[328897129,1717968649700,-500.0,0.00029041,4]
[328897130,1717968649711,-266.28,0.00029041,4]
[328897131,1717968649722,-193.39842438,0.00029041,4]
[328897132,1717968649733,-500.0,0.00029041,4]
[328897133,1717968649743,-500.0,0.00029041,4]
[328897134,1717968649754,-500.0,0.00029041,4]
[328897135,1717968649764,-500.0,0.00029041,4]
[328897136,1717968649775,-196.33321331,0.00029041,4]
[328897137,1717968649785,-500.0,0.00029041,4]
[328897138,1717968649796,-500.0,0.00029041,4]
[328897139,1717968649806,-500.0,0.00029041,4]
[328897140,1717968649816,-500.0,0.00029041,4]
[328897141,1717968649826,-500.0,0.00029041,4]
[328897142,1717968649837,-279.81,0.00029041,4]
[328897143,1717968649847,-500.0,0.00029041,4]
[328897144,1717968649858,-523.05929392,0.00029041,4]
[328897145,1717968649868,-500.0,0.00029041,4]
[328897146,1717968649878,-516.62429755,0.00029041,4]
[328897147,1717968649889,-500.0,0.00029041,4]
[328897148,1717968649900,-500.0,0.00029041,4]
[328897149,1717968649910,-500.0,0.00029041,4]
[328897150,1717968649921,-500.0,0.00029041,4]
[328897151,1717968649933,-500.0,0.00029041,4]
[328897152,1717968649943,-293.13556828,0.00029041,4]
[328897153,1717968649953,-500.0,0.00029041,4]
[328897154,1717968649962,-353.87,0.00029041,4]
[328897155,1717968649972,-500.0,0.00029041,4]
[328897156,1717968649981,-500.0,0.00029041,4]
[328897157,1717968649991,-500.0,0.00029041,4]
[328897158,1717968650001,-507.55514227,0.00029041,4]
[328897159,1717968650011,-504.83645263,0.00029041,4]
[328897160,1717968650020,-545.57,0.00029041,4]
[328897161,1717968650032,-500.0,0.00029041,4]
[328897162,1717968650042,-526.99461049,0.00029041,4]
[328897163,1717968650053,-500.0,0.00029041,4]
[328897164,1717968650063,-500.0,0.00029041,4]
[328897165,1717968650073,-151.0,0.00029041,7]
[328897166,1717968650083,-151.0,0.00029041,7]
[328897167,1717968650093,-605.56,0.00029041,4]
[328897168,1717968650104,-151.0,0.00029041,7]
[328897169,1717968650115,-500.0,0.00029041,4]
[328897170,1717968650126,-500.8678682,0.00029041,4]
[328897171,1717968650137,-500.0,0.00029041,4]
[328897172,1717968650148,-515.81915655,0.00029041,4]
[328897173,1717968650159,-500.0,0.00029041,4]
[328897174,1717968650169,-510.47145486,0.00029041,4]
[328897175,1717968650180,-500.0,0.00029041,4]
[328897176,1717968650190,-498.52406624,0.00029041,4]
[328897177,1717968650203,-506.69948192,0.00029041,4]
[328897178,1717968650213,-500.0,0.00029041,4]
[328897179,1717968650224,-500.0,0.00029041,4]
[328897180,1717968650235,-500.0,0.00029041,4]
[328897181,1717968650246,-500.0,0.00029041,4]
[328897182,1717968650256,-500.0,0.00029041,4]
[328897183,1717968650355,-205.80210905,0.00029041,4]
[328897184,1717968650382,-500.0,0.00029041,4]
[328897185,1717968650394,-500.0,0.00029041,4]
[328897186,1717968650405,-500.0,0.00029041,4]
[328897187,1717968650416,-500.0,0.00029041,4]
[328897188,1717968650427,-500.0,0.00029041,4]
[328897189,1717968650438,-500.0,0.00029041,4]
[328897190,1717968650450,-432.77341658,0.00029041,4]
[328897191,1717968650461,-500.0,0.00029041,4]
[328897192,1717968650471,-505.93110186,0.00029041,4]
[328897193,1717968650482,-500.0,0.00029041,4]
[328897194,1717968650493,-500.0,0.00029041,4]
[328897195,1717968650503,-500.0,0.00029041,4]
[328897196,1717968650514,-500.0,0.00029041,4]
[328897197,1717968650525,-168.16930283,0.00029041,4]
[328897198,1717968650535,-507.88366168,0.00029041,4]
[328897199,1717968650546,-500.0,0.00029041,4]
[328897200,1717968650556,-500.0,0.00029041,4]
[328897201,1717968650567,-500.0,0.00029041,4]
[328897202,1717968650578,-500.0,0.00029041,4]
[328897203,1717968650589,-448.8665189,0.00029041,4]
[328897204,1717968650599,-507.37592385,0.00029041,4]
[328897205,1717968650610,-500.0,0.00029041,4]
[328897206,1717968650620,-599.57455535,0.00029041,4]
[328897207,1717968650631,-500.0,0.00029041,4]
[328897208,1717968650642,-500.0,0.00029041,4]
[328897209,1717968650652,-501.47853379,0.00029041,4]
[328897210,1717968650663,-500.0,0.00029041,4]
[328897211,1717968650673,-500.0,0.00029041,4]
[328897212,1717968650684,-507.69429197,0.00029041,4]
[328897213,1717968650694,-343.15420174,0.00029041,4]
[328897214,1717968650704,-549.00108659,0.00029041,4]
[328897215,1717968650714,-500.0,0.00029041,4]
[328897216,1717968650724,-503.88428547,0.00029041,4]
[328897217,1717968650735,-500.0,0.00029041,4]
[328897218,1717968650746,-505.26811187,0.00029041,4]
[328897219,1717968650756,-500.0,0.00029041,4]
[328897220,1717968650766,-500.0,0.00029041,4]
[328897221,1717968650776,-150.15,0.00029041,4]
[328897222,1717968650787,-500.0,0.00029041,4]
[328897223,1717968650797,-500.0,0.00029041,4]
[328897224,1717968650807,-500.0,0.00029041,4]
[328897225,1717968650817,-462.99495866,0.00029041,4]
[328897226,1717968650827,-500.0,0.00029041,4]
[328897227,1717968650837,-500.0,0.00029041,4]
[328897228,1717968650848,-500.0,0.00029041,4]
[328897229,1717968650858,-213.37,0.00029041,4]
[328897230,1717968650868,-500.0,0.00029041,4]
[328897231,1717968650878,-500.0,0.00029041,4]
[328897232,1717968650888,-334.34132478,0.00029041,4]
[328897233,1717968650898,-508.27167949,0.00029041,4]
[328897234,1717968650908,-386.5248453,0.00029041,4]
[328897235,1717968650918,-500.0,0.00029041,4]
[328897236,1717968650929,-500.0,0.00029041,4]
[328897237,1717968650939,-500.0,0.00029041,4]
[328897238,1717968650949,-500.0,0.00029041,4]
[328897239,1717968650959,-500.0,0.00029041,4]
[328897240,1717968650969,-507.07229136,0.00029041,4]
[328897241,1717968650979,-500.0,0.00029041,4]
[328897242,1717968650989,-506.64299461,0.00029041,4]
[328897243,1717968651000,-505.9525754,0.00029041,4]
[328897244,1717968651010,-513.65025027,0.00029041,4]
[328897245,1717968651020,-500.0,0.00029041,4]
[328897246,1717968651031,-528.6,0.00029041,4]
[328897247,1717968651041,-500.0,0.00029041,4]
[328897248,1717968651051,-505.78532147,0.00029041,4]
[328897249,1717968651061,-500.0,0.00029041,4]
[328897250,1717968651071,-509.11820833,0.00029041,4]
[328897251,1717968651082,-500.0,0.00029041,4]
[328897252,1717968651092,-500.0,0.00029041,4]
[328897253,1717968651102,-179.73647213,0.00029041,4]
[328897254,1717968651112,-500.0,0.00029041,4]
[328897255,1717968651122,-500.0,0.00029041,4]
[328897256,1717968651132,-500.0,0.00029041,4]
[328897257,1717968651143,-500.0,0.00029041,4]
[328897258,1717968651153,-500.0,0.00029041,4]
[328897259,1717968651163,-500.0,0.00029041,4]
[328897260,1717968651173,-500.0,0.00029041,4]
[328897261,1717968651184,-515.0997105,0.00029041,4]
[328897262,1717968651196,-155.55,0.00029041,4]
[328897263,1717968651208,-442.41135324,0.00029041,4]
[328897264,1717968651386,-57.58864676,0.00029041,4]
[328897265,1717968651397,-500.0,0.00029041,4]
[328897266,1717968651407,-500.0,0.00029041,4]
[328897267,1717968651417,-500.0,0.00029041,4]
[328897268,1717968651429,-510.08535943,0.00029041,4]
[328897269,1717968651439,-500.0,0.00029041,4]
[328897270,1717968651450,-500.0,0.00029041,4]
[328897271,1717968651460,-500.0,0.00029041,4]
[328897272,1717968651469,-311.65921326,0.00029041,4]
[328897273,1717968651479,-405.95432074,0.00029041,4]
[328897274,1717968651489,-500.0,0.00029041,4]
[328897275,1717968651499,-500.0,0.00029041,4]
[328897276,1717968651509,-500.0,0.00029041,4]
[328897277,1717968651519,-500.0,0.00029041,4]
[328897278,1717968651530,-500.0,0.00029041,4]
[328897279,1717968651541,-500.0,0.00029041,4]
[328897280,1717968651551,-500.0,0.00029041,4]
[328897281,1717968651560,-500.0,0.00029041,4]
[328897282,1717968651571,-500.0,0.00029041,4]
[328897283,1717968651582,-500.0,0.00029041,4]
[328897284,1717968651592,-613.99,0.00029041,4]
[328897285,1717968651602,-239.45,0.00029041,4]
[328897286,1717968651614,-500.0,0.00029041,4]
[328897287,1717968651623,-501.03550055,0.00029041,4]
[328897288,1717968651633,-500.0,0.00029041,4]
[328897289,1717968651642,-506.83805823,0.00029041,4]
[328897290,1717968651652,-213.23258229,0.00029041,4]
[328897291,1717968651663,-500.0,0.00029041,4]
[328897292,1717968651675,-509.84814934,0.00029041,4]
[328897293,1717968651685,-500.0,0.00029041,4]
[328897294,1717968651695,-313.46115937,0.00029041,4]
[328897295,1717968651706,-500.0,0.00029041,4]
[328897296,1717968651716,-500.0,0.00029041,4]
[328897297,1717968651726,-500.0,0.00029041,4]
[328897298,1717968651736,-505.43757086,0.00029041,4]
[328897299,1717968651746,-500.0,0.00029041,4]
[328897300,1717968651756,-500.0,0.00029041,4]
[328897301,1717968651765,-132.66943915,0.00029041,4]
[328897302,1717968651794,-367.33056085,0.00029041,4]
[328897303,1717968651804,-500.0,0.00029041,4]
[328897304,1717968651815,-500.0,0.00029041,4]
[328897305,1717968651824,-500.0,0.00029041,4]
[328897306,1717968651833,-500.0,0.00029041,4]
[328897307,1717968651843,-504.68887736,0.00029041,4]
[328897308,1717968651853,-500.0,0.00029041,4]
[328897309,1717968651862,-503.91101916,0.00029041,4]
[328897310,1717968651873,-500.0,0.00029041,4]
[328897311,1717968651882,-500.0,0.00029041,4]
[328897312,1717968651893,-566.39,0.00029041,4]
[328897313,1717968651905,-500.0,0.00029041,4]
[328897314,1717968651916,-500.0,0.00029041,4]
[328897315,1717968651926,-500.0,0.00029041,4]
[328897316,1717968651936,-500.0,0.00029041,4]
[328897317,1717968651947,-486.71814657,0.00029041,4]
[328897318,1717968651957,-500.0,0.00029041,4]
[328897319,1717968651969,-500.0,0.00029041,4]
[328897320,1717968651980,-500.0,0.00029041,4]
[328897321,1717968651990,-503.9865524,0.00029041,4]
[328897322,1717968652002,-512.86776094,0.00029041,4]
[328897323,1717968652013,-500.0,0.00029041,4]
[328897324,1717968652024,-500.0,0.00029041,4]
[328897325,1717968652035,-500.0,0.00029041,4]
[328897326,1717968652045,-520.24554544,0.00029041,4]
[328897327,1717968652056,-506.2392149,0.00029041,4]
[328897328,1717968652067,-500.0,0.00029041,4]
[328897329,1717968652077,-500.0,0.00029041,4]
[328897330,1717968652088,-500.0,0.00029041,4]
[328897331,1717968652098,-500.0,0.00029041,4]
[328897332,1717968652108,-500.0,0.00029041,4]
[328897333,1717968652118,-331.42216416,0.00029041,4]
[328897334,1717968652128,-500.0,0.00029041,4]
[328897335,1717968652139,-245.48811296,0.00029041,4]
[328897336,1717968652149,-500.0,0.00029041,4]
[328897337,1717968652159,-234.92780411,0.00029041,4]
[328897338,1717968652169,-500.0,0.00029041,4]
[328897339,1717968652178,-500.0,0.00029041,4]
[328897340,1717968652188,-500.0,0.00029041,4]
[328897341,1717968652198,-504.14500529,0.00029041,4]
[328897342,1717968652213,-500.0,0.00029041,4]
[328897343,1717968652223,-500.0,0.00029041,4]
[328897344,1717968652234,-500.0,0.00029041,4]
[328897345,1717968652246,-503.76497259,0.00029041,4]
[328897346,1717968652256,-500.0,0.00029041,4]
[328897347,1717968652266,-500.0,0.00029041,4]
[328897348,1717968652276,-500.0,0.00029041,4]
[328897349,1717968652288,-503.70887319,0.00029041,4]
[328897350,1717968652298,-500.0,0.00029041,4]
[328897351,1717968652309,-500.0,0.00029041,4]
[328897352,1717968652319,-500.0,0.00029041,4]
[328897353,1717968652330,-500.0,0.00029041,4]
[328897354,1717968652340,-500.0,0.00029041,4]
[328897355,1717968652350,-500.0,0.00029041,4]
[328897356,1717968652360,-500.0,0.00029041,4]
[328897357,1717968652370,-500.0,0.00029041,4]
[328897358,1717968652379,-572.68862542,0.00029041,4]
[328897359,1717968652390,-424.60615058,0.00029041,4]
[328897360,1717968652400,-500.0,0.00029041,4]
[328897361,1717968652413,-500.0,0.00029041,4]
[328897362,1717968652423,-174.53813791,0.00029041,4]
[328897363,1717968652433,-500.0,0.00029041,4]
[328897364,1717968652443,-407.21252857,0.00029041,4]
[328897365,1717968652453,-506.59383013,0.00029041,4]
[328897366,1717968652463,-500.0,0.00029041,4]
[328897367,1717968652474,-500.0,0.00029041,4]
[328897368,1717968652484,-500.0,0.00029041,4]
[328897369,1717968652495,-500.0,0.00029041,4]
[328897370,1717968652506,-500.0,0.00029041,4]
[328897371,1717968652518,-506.99392718,0.00029041,4]
[328897372,1717968652620,-500.0,0.00029041,4]
[328897373,1717968652630,-500.0,0.00029041,4]
[328897374,1717968652640,-164.3307728,0.00029041,4]
[328897375,1717968652650,-500.0,0.00029041,4]
[328897376,1717968652660,-500.0,0.00029041,4]
[328897377,1717968652670,-500.0,0.00029041,4]
[328897378,1717968652679,-500.0,0.00029041,4]
[328897379,1717968652689,-334.16,0.00029041,4]
[328897380,1717968652699,-642.73,0.00029041,4]
[328897381,1717968652709,-500.0,0.00029041,4]
[328897382,1717968652719,-500.0,0.00029041,4]
[328897383,1717968652729,-500.0,0.00029041,4]
[328897384,1717968652740,-504.29663769,0.00029041,4]
[328897385,1717968652752,-500.0,0.00029041,4]
[328897386,1717968652762,-500.0,0.00029041,4]
[328897387,1717968652773,-500.0,0.00029041,4]
[328897388,1717968652783,-500.0,0.00029041,4]
[328897389,1717968652792,-500.0,0.00029041,4]
[328897390,1717968652802,-501.24092692,0.00029041,4]
[328897391,1717968652813,-221.36999699,0.00029041,4]
[328897392,1717968652823,-500.0,0.00029041,4]
[328897393,1717968652834,-260.94559097,0.00029041,4]
[328897394,1717968652844,-500.0,0.00029041,4]
[328897395,1717968652855,-500.0,0.00029041,4]
[328897396,1717968652865,-273.57,0.00029041,4]
[328897397,1717968652875,-503.09860383,0.00029041,4]
[328897398,1717968652885,-500.0,0.00029041,4]
[328897399,1717968652895,-500.0,0.00029041,4]
[328897400,1717968652905,-500.0,0.00029041,4]
[328897401,1717968652915,-500.0,0.00029041,4]
[328897402,1717968652926,-500.0,0.00029041,4]
[328897403,1717968652936,-500.0,0.00029041,4]
[328897404,1717968652946,-500.0,0.00029041,4]
[328897405,1717968652955,-500.0,0.00029041,4]
[328897406,1717968652965,-514.44811704,0.00029041,4]
[328897407,1717968652975,-500.0,0.00029041,4]
[328897408,1717968652985,-500.0,0.00029041,4]
[328897409,1717968652996,-151.0,0.00029041,7]
[328897410,1717968653006,-505.60399043,0.00029041,4]
[328897411,1717968653016,-500.0,0.00029041,4]
[328897412,1717968653026,-500.0,0.00029041,4]
[328897413,1717968653036,-151.0,0.00029041,7]
[328897414,1717968653046,-383.92679871,0.00029041,4]
[328897415,1717968653056,-151.0,0.00029041,7]
[328897416,1717968653068,-151.0,0.00029041,7]
[328897417,1717968653078,-214.078676,0.00029041,7]
[328897418,1717968653089,-500.0,0.00029041,4]
[328897419,1717968653101,-500.0,0.00029041,4]
[328897420,1717968653112,-500.0,0.00029041,4]
[328897421,1717968653123,-522.42,0.00029041,4]
[328897422,1717968653134,-500.0,0.00029041,4]
[328897423,1717968653144,-380.04233065,0.00029041,4]
[328897424,1717968653154,-500.0,0.00029041,4]
[328897425,1717968653165,-500.0,0.00029041,4]
[328897426,1717968653175,-500.0,0.00029041,4]
[328897427,1717968653186,-500.0,0.00029041,4]
[328897428,1717968653196,-524.83954731,0.00029041,4]
[328897429,1717968653212,-500.0,0.00029041,4]
[328897430,1717968653222,-516.88119147,0.00029041,4]
[328897431,1717968653233,-504.56282262,0.00029041,4]
[328897432,1717968653245,-500.0,0.00029041,4]
[328897433,1717968653256,-163.96770312,0.00029041,4]
[328897434,1717968653266,-500.0,0.00029041,4]
[328897435,1717968653276,-500.0,0.00029041,4]
[328897436,1717968653287,-500.0,0.00029041,4]
[328897437,1717968653298,-529.38464526,0.00029041,4]
[328897438,1717968653311,-500.0,0.00029041,4]
[328897439,1717968653322,-633.4492296,0.00029041,4]
[328897440,1717968653332,-417.31757026,0.00029041,4]
[328897441,1717968653342,-500.0,0.00029041,4]
[328897442,1717968653354,-153.73926614,0.00029041,4]
[328897443,1717968653364,-511.7399836,0.00029041,4]
[328897444,1717968653374,-505.74222974,0.00029041,4]
[328897445,1717968653386,-500.0,0.00029041,4]
[328897446,1717968653397,-500.0,0.00029041,4]
[328897447,1717968653408,-500.0,0.00029041,4]
[328897448,1717968653419,-500.0,0.00029041,4]
[328897449,1717968653430,-468.9149886,0.00029041,4]
[328897450,1717968653440,-500.0,0.00029041,4]
[328897451,1717968653451,-500.0,0.00029041,4]
[328897452,1717968653461,-500.0,0.00029041,4]
[328897453,1717968653471,-515.87158884,0.00029041,4]
[328897454,1717968653482,-503.72907024,0.00029041,4]
[328897455,1717968653492,-500.0,0.00029041,4]
[328897456,1717968653505,-503.64577652,0.00029041,4]
[328897457,1717968653516,-151.0,0.00029041,7]
[328897458,1717968653528,-500.0,0.00029041,4]
[328897459,1717968653538,-151.0,0.00029041,7]
[328897460,1717968653549,-1003.44868177,0.00029041,4]
[328897461,1717968653560,-500.0,0.00029041,4]
[328897462,1717968653570,-151.0,0.00029041,7]
[328897463,1717968653580,-614.06,0.00029041,4]
[328897464,1717968653592,-513.06460421,0.00029041,4]
[328897465,1717968653603,-500.0,0.00029041,4]
[328897466,1717968653614,-1500.0,0.00029041,4]
[328897467,1717968653627,-1500.0,0.00029041,4]
[328897468,1717968653639,-500.0,0.00029041,4]
[328897469,1717968653649,-518.81093215,0.00029041,4]
[328897470,1717968653660,-1500.0,0.00029041,4]
[328897471,1717968653670,-609.87858746,0.00029041,4]
[328897472,1717968653680,-500.0,0.00029041,4]
[328897473,1717968653690,-504.75360606,0.00029041,4]
[328897474,1717968653700,-500.0,0.00029041,4]
[328897475,1717968653710,-510.36220989,0.00029041,4]
[328897476,1717968653720,-500.0,0.00029041,4]
[328897477,1717968653730,-520.34892791,0.00029041,4]
[328897478,1717968653740,-510.90464708,0.00029041,4]
[328897479,1717968653750,-500.0,0.00029041,4]
[328897480,1717968653760,-500.0,0.00029041,4]
[328897481,1717968653770,-500.0,0.00029041,4]
[328897482,1717968653780,-500.0,0.00029041,4]
[328897483,1717968653791,-521.29613632,0.00029041,4]
[328897484,1717968653802,-500.0,0.00029041,4]
[328897485,1717968653812,-513.93649014,0.00029041,4]
[328897486,1717968653823,-500.0,0.00029041,4]
[328897487,1717968653833,-190.93988066,0.00029041,4]
[328897488,1717968653843,-500.0,0.00029041,4]
[328897489,1717968653854,-500.0,0.00029041,4]
[328897490,1717968653864,-500.0,0.00029041,4]
[328897491,1717968653875,-500.0,0.00029041,4]
[328897492,1717968653885,-500.0,0.00029041,4]
[328897493,1717968653896,-539.0252409,0.00029041,4]
[328897494,1717968653906,-514.05229397,0.00029041,4]
[328897495,1717968653916,-500.0,0.00029041,4]
[328897496,1717968653927,-500.0,0.00029041,4]
[328897497,1717968653940,-454.45580201,0.00029041,4]
[328897498,1717968653950,-500.0,0.00029041,4]
[328897499,1717968653961,-500.0,0.00029041,4]
[328897500,1717968653971,-500.0,0.00029041,4]
[328897501,1717968653982,-500.0,0.00029041,4]
[328897502,1717968653992,-510.4219066,0.00029041,4]
[328897503,1717968654003,-1000.0,0.00029041,5]
[328897504,1717968654014,-387.98641228,0.00029041,4]
[328897505,1717968654025,-1019.99690644,0.00029041,5]
[328897506,1717968654035,-500.0,0.00029041,4]
[328897507,1717968654046,-500.0,0.00029041,4]
[328897508,1717968654057,-500.0,0.00029041,4]
[328897509,1717968654067,-500.0,0.00029041,4]
[328897510,1717968654078,-500.0,0.00029041,4]
[328897511,1717968654088,-506.85465475,0.00029041,4]
[328897512,1717968654098,-607.89921979,0.00029041,4]
[328897513,1717968654108,-512.03267965,0.00029041,4]
[328897514,1717968654119,-500.0,0.00029041,4]
[328897515,1717968654130,-500.0,0.00029041,4]
[328897516,1717968654141,-500.0,0.00029041,4]
[328897517,1717968654152,-507.08306906,0.00029041,4]
[328897518,1717968654164,-500.0,0.00029041,4]
[328897519,1717968654174,-500.0,0.00029041,4]
[328897520,1717968654185,-500.0,0.00029041,4]
[328897521,1717968654197,-511.28772462,0.00029041,4]
[328897522,1717968654209,-500.0,0.00029041,4]
[328897523,1717968654219,-564.32906125,0.00029041,4]
[328897524,1717968654230,-500.0,0.00029041,4]
[328897525,1717968654242,-500.0,0.00029041,4]
[328897526,1717968654252,-500.0,0.00029041,4]
[328897527,1717968654263,-500.0,0.00029041,4]
[328897528,1717968654274,-500.0,0.00029041,4]
[328897529,1717968654288,-500.0,0.00029041,4]
[328897530,1717968654298,-500.0,0.00029041,4]
[328897531,1717968654309,-500.0,0.00029041,4]
[328897532,1717968654320,-500.0,0.00029041,4]
[328897533,1717968654331,-500.0,0.00029041,4]
[328897534,1717968654341,-180.72882006,0.00029041,4]
[328897535,1717968654353,-500.0,0.00029041,4]
[328897536,1717968654363,-500.0,0.00029041,4]
[328897537,1717968654375,-534.0197394,0.00029041,4]
[328897538,1717968654385,-512.86658538,0.00029041,4]
[328897539,1717968654395,-500.0,0.00029041,4]
[328897540,1717968654406,-500.0,0.00029041,4]
[328897541,1717968654417,-500.0,0.00029041,4]
[328897542,1717968654427,-500.0,0.00029041,4]
[328897543,1717968654438,-520.08801456,0.00029041,4]
[328897544,1717968654448,-500.0,0.00029041,4]
[328897545,1717968654458,-500.0,0.00029041,4]
[328897546,1717968654565,-500.0,0.00029041,4]
[328897547,1717968654577,-500.0,0.00029041,4]
[328897548,1717968654588,-500.0,0.00029041,4]
[328897549,1717968654598,-500.0,0.00029041,4]
[328897550,1717968654609,-500.0,0.00029041,4]
[328897551,1717968654620,-500.0,0.00029041,4]
[328897552,1717968654631,-500.0,0.00029041,4]
[328897553,1717968654642,-500.0,0.00029041,4]
[328897554,1717968654652,-500.0,0.00029041,4]
[328897555,1717968654662,-500.0,0.00029041,4]
[328897556,1717968654673,-500.0,0.00029041,4]
[328897557,1717968654683,-500.0,0.00029041,4]
[328897558,1717968654693,-500.0,0.00029041,4]
[328897559,1717968654704,-500.0,0.00029041,4]